fUSD/lending_fUSD_20250109
["ID","MTS","AMOUNT","RATE_DAILY","PERIOD"]
[348305412,1736439048619,-1387.36,0.00010073,2]
[348305413,1736439048641,-500.0,0.00010073,2]
[348305414,1736439048651,-2508.1,0.00010073,2]
[348305415,1736439048660,-500.0,0.00010073,2]
[348305416,1736439048670,-500.0,0.00010073,2]
[348305417,1736439048679,-755.26,0.00010073,2]
[348305418,1736439048688,-2371.26,0.00010073,2]
[348305419,1736439048697,-500.0,0.00010073,2]
[348305420,1736439048707,-500.0,0.00010073,2]
[348305421,1736439048722,-992.54,0.00010073,2]
[348305422,1736439048731,-500.0,0.00010073,2]
[348305423,1736439048741,-2701.11,0.00010073,2]
[348305424,1736439048751,-2329.67,0.00010073,2]
[348305425,1736439048762,-903.55,0.00010073,2]
[348305426,1736439048772,-628.25,0.00010073,2]
[348305427,1736439048781,-1037.17,0.00010073,2]
[348305428,1736439048791,-2277.6,0.00010073,2]
[348305429,1736439048801,-1010.40383377,0.00010073,2]
[348305430,1736439048814,-494.99900223,0.00010073,2]
[348305431,1736439048826,-477.5888,0.00010073,2]
[348305432,1736439048837,-3375.408364,0.00010073,2]
[348305433,1736439048847,-1136.52039046,0.00010141,2]
[348305434,1736439048856,-150.0,0.00010151,2]
[348305435,1736439048868,-286.51253118,0.00010238,2]
[348305436,1736439048877,-471.3460838,0.00010246,2]
[348305437,1736439048887,-618.97,0.00010248,2]
[348305438,1736439048897,-500.0,0.00010248,2]
[348305439,1736439048907,-500.0,0.00010248,2]
[348305440,1736439048918,-500.0,0.00010248,2]
[348305441,1736439048927,-500.0,0.00010248,2]
[348305442,1736439048937,-500.0,0.00010248,2]
[348305443,1736439048946,-500.0,0.00010248,2]
[348305444,1736439048955,-500.0,0.00010248,2]
[348305445,1736439048965,-500.0,0.00010248,2]
[348305446,1736439048975,-500.0,0.00010248,2]
[348305447,1736439048985,-500.0,0.00010248,2]
[348305448,1736439048995,-568.83,0.00010248,2]
[348305449,1736439049005,-500.0,0.00010248,2]
[348305450,1736439049015,-500.0,0.00010248,2]
[348305451,1736439049024,-500.0,0.00010248,2]
[348305452,1736439049034,-1074.09,0.00010248,2]
[348305453,1736439049043,-500.0,0.00010248,2]
[348305454,1736439049052,-872.77,0.00010248,2]
[348305455,1736439049062,-500.0,0.00010248,2]
[348305456,1736439049072,-500.0,0.00010248,2]
[348305457,1736439049081,-500.0,0.00010248,2]
[348305458,1736439049092,-500.0,0.00010248,2]
[348305459,1736439049101,-500.0,0.00010248,2]
[348305460,1736439049111,-500.0,0.00010248,2]
[348305461,1736439049121,-500.0,0.00010248,2]
[348305462,1736439049131,-500.3,0.00010248,2]
[348305463,1736439049141,-500.0,0.00010248,2]
[348305464,1736439049151,-500.0,0.00010248,2]
[348305465,1736439049160,-500.0,0.00010248,2]
[348305466,1736439049171,-1465.92,0.00010248,2]
[348305467,1736439049180,-500.0,0.00010248,2]
[348305468,1736439049190,-500.0,0.00010248,2]
[348305469,1736439049200,-500.0,0.00010248,2]
[348305470,1736439049209,-802.65,0.00010248,2]
[348305471,1736439049219,-500.0,0.00010248,2]
[348305472,1736439049228,-500.0,0.00010248,2]
[348305473,1736439049238,-500.0,0.00010248,2]
[348305474,1736439049248,-881.13,0.00010248,2]
[348305475,1736439049258,-500.0,0.00010248,2]
[348305476,1736439049268,-500.0,0.00010248,2]
[348305477,1736439049278,-500.0,0.00010248,2]
[348305478,1736439049288,-500.0,0.00010248,2]
[348305479,1736439049297,-500.0,0.00010248,2]
[348305480,1736439049307,-500.0,0.00010248,2]
[348305481,1736439049316,-500.0,0.00010248,2]
[348305482,1736439049327,-500.0,0.00010248,2]
[348305483,1736439049337,-643.11,0.00010248,2]
[348305484,1736439049347,-500.0,0.00010248,2]
[348305485,1736439049356,-505.19,0.00010248,2]
[348305486,1736439049368,-533.53,0.00010248,2]
[348305487,1736439049377,-500.0,0.00010248,2]
[348305488,1736439049386,-500.0,0.00010248,2]
[348305489,1736439049396,-500.0,0.00010248,2]
[348305490,1736439049405,-500.0,0.00010248,2]
[348305491,1736439049414,-500.0,0.00010248,2]
[348305492,1736439049424,-500.0,0.00010248,2]
[348305493,1736439049435,-500.0,0.00010248,2]
[348305494,1736439049444,-500.0,0.00010248,2]
[348305495,1736439049454,-518.51,0.00010248,2]
[348305496,1736439049466,-500.0,0.00010248,2]
[348305497,1736439049476,-500.0,0.00010248,2]
[348305498,1736439049485,-500.0,0.00010248,2]
[348305499,1736439049495,-500.0,0.00010248,2]
[348305500,1736439049504,-500.0,0.00010248,2]
[348305501,1736439049514,-941.22,0.00010248,2]
[348305502,1736439049523,-500.0,0.00010248,2]
[348305503,1736439049532,-500.0,0.00010248,2]
[348305504,1736439049541,-559.78,0.00010248,2]
[348305505,1736439049550,-575.2,0.00010248,2]
[348305506,1736439049559,-500.0,0.00010248,2]
[348305507,1736439049568,-500.0,0.00010248,2]
[348305508,1736439049577,-500.0,0.00010248,2]
[348305509,1736439049587,-500.0,0.00010248,2]
[348305510,1736439049596,-647.52,0.00010248,2]
[348305511,1736439049605,-500.0,0.00010248,2]
[348305512,1736439049617,-500.0,0.00010248,2]
[348305513,1736439049626,-580.61,0.00010248,2]
[348305514,1736439049636,-500.0,0.00010248,2]
[348305515,1736439049645,-500.0,0.00010248,2]
[348305516,1736439049655,-500.0,0.00010248,2]
[348305517,1736439049664,-500.0,0.00010248,2]
[348305518,1736439049674,-1272.17,0.00010248,2]
[348305519,1736439049683,-672.23,0.00010248,2]
[348305520,1736439049692,-559.08,0.00010248,2]
[348305521,1736439049701,-500.0,0.00010248,2]
[348305522,1736439049711,-500.0,0.00010248,2]
[348305523,1736439049724,-517.09,0.00010248,2]
[348305524,1736439049736,-500.0,0.00010248,2]
[348305525,1736439049746,-500.0,0.00010248,2]
[348305526,1736439049757,-1755.98,0.00010248,2]
[348305527,1736439049768,-500.0,0.00010248,2]
[348305528,1736439049777,-500.0,0.00010248,2]
[348305529,1736439049786,-500.0,0.00010248,2]
[348305530,1736439049796,-500.0,0.00010248,2]
[348305531,1736439049806,-500.0,0.00010248,2]
[348305532,1736439049817,-511.57,0.00010248,2]
[348305533,1736439049828,-500.0,0.00010248,2]
[348305534,1736439049840,-500.0,0.00010248,2]
[348305535,1736439049850,-500.0,0.00010248,2]
[348305536,1736439049861,-500.0,0.00010248,2]
[348305537,1736439049871,-500.0,0.00010248,2]
[348305538,1736439049880,-500.0,0.00010248,2]
[348305539,1736439049889,-296.28001704,0.00010248,2]
[348305540,1736439049899,-500.0,0.00010248,2]
[348305541,1736439049908,-500.0,0.00010248,2]
[348305542,1736439049917,-500.0,0.00010248,2]
[348305543,1736439049927,-500.0,0.00010248,2]
[348305544,1736439049936,-500.0,0.00010248,2]
[348305545,1736439049945,-500.0,0.00010248,2]
[348305546,1736439049955,-500.0,0.00010248,2]
[348305547,1736439049965,-532.03,0.00010248,2]
[348305548,1736439049975,-500.0,0.00010248,2]
[348305549,1736439049984,-500.0,0.00010248,2]
[348305550,1736439049993,-500.0,0.00010248,2]
[348305551,1736439050003,-1694.93,0.00010248,2]
[348305552,1736439050012,-500.0,0.00010248,2]
[348305553,1736439050022,-501.85316229,0.00010248,2]
[348305554,1736439050031,-500.0,0.00010248,2]
[348305555,1736439050041,-500.0,0.00010248,2]
[348305556,1736439050051,-500.0,0.00010248,2]
[348305557,1736439050060,-873.12,0.00010248,2]
[348305558,1736439050070,-500.0,0.00010248,2]
[348305559,1736439050079,-500.0,0.00010248,2]
[348305560,1736439050088,-500.0,0.00010248,2]
[348305561,1736439050098,-500.0,0.00010248,2]
[348305562,1736439050107,-649.25285843,0.00010248,2]
[348305563,1736439050118,-500.0,0.00010248,2]
[348305564,1736439050127,-500.0,0.00010248,2]
[348305565,1736439050137,-1734.48,0.00010248,2]
[348305566,1736439050147,-651.87,0.00010248,2]
[348305567,1736439050156,-500.0,0.00010248,2]
[348305568,1736439050165,-500.0,0.00010248,2]
[348305569,1736439050175,-500.0,0.00010248,2]
[348305570,1736439050184,-500.0,0.00010248,2]
[348305571,1736439050193,-500.0,0.00010248,2]
[348305572,1736439050202,-500.0,0.00010248,2]
[348305573,1736439050211,-621.25122963,0.00010248,2]
[348305574,1736439050221,-500.0,0.00010248,2]
[348305575,1736439050230,-500.0,0.00010248,2]
[348305576,1736439050239,-500.0,0.00010248,2]
[348305577,1736439050249,-1696.98,0.00010248,2]
[348305578,1736439050258,-500.0,0.00010248,2]
[348305579,1736439050267,-500.0,0.00010248,2]
[348305580,1736439050276,-500.0,0.00010248,2]
[348305581,1736439050286,-745.7,0.00010248,2]
[348305582,1736439050295,-662.45,0.00010248,2]
[348305583,1736439050304,-500.0,0.00010248,2]
[348305584,1736439050314,-500.0,0.00010248,2]
[348305585,1736439050323,-500.0,0.00010248,2]
[348305586,1736439050333,-1171.34,0.00010248,2]
[348305587,1736439050342,-500.0,0.00010248,2]
[348305588,1736439050351,-500.0,0.00010248,2]
[348305589,1736439050362,-500.0,0.00010248,2]
[348305590,1736439050371,-500.0,0.00010248,2]
[348305591,1736439050381,-500.0,0.00010248,2]
[348305592,1736439050391,-1268.51,0.00010248,2]
[348305593,1736439050399,-500.0,0.00010248,2]
[348305594,1736439050409,-599.79,0.00010248,2]
[348305595,1736439050418,-500.0,0.00010248,2]
[348305596,1736439050427,-500.0,0.00010248,2]
[348305597,1736439050436,-500.0,0.00010248,2]
[348305598,1736439050446,-500.0,0.00010248,2]
[348305599,1736439050455,-500.0,0.00010248,2]
[348305600,1736439050464,-500.0,0.00010248,2]
[348305601,1736439050474,-1842.61,0.00010248,2]
[348305602,1736439050483,-500.0,0.00010248,2]
[348305603,1736439050493,-3321.19,0.00010248,2]
[348305604,1736439050502,-500.0,0.00010248,2]
[348305605,1736439050511,-1352.54,0.00010248,2]
[348305606,1736439050521,-500.0,0.00010248,2]
[348305607,1736439050530,-500.0,0.00010248,2]
[348305608,1736439050539,-500.0,0.00010248,2]
[348305609,1736439050549,-661.28,0.00010248,2]
[348305610,1736439050558,-500.0,0.00010248,2]
[348305611,1736439050567,-500.0,0.00010248,2]
[348305612,1736439050576,-500.0,0.00010248,2]
[348305613,1736439050585,-500.0,0.00010248,2]
[348305614,1736439050595,-500.0,0.00010248,2]
[348305615,1736439050604,-500.0,0.00010248,2]
[348305616,1736439050615,-500.0,0.00010248,2]
[348305617,1736439050625,-500.0,0.00010248,2]
[348305618,1736439050635,-500.0,0.00010248,2]
[348305619,1736439050644,-953.8,0.00010248,2]
[348305620,1736439050654,-500.0,0.00010248,2]
[348305621,1736439050664,-500.0,0.00010248,2]
[348305622,1736439050673,-500.0,0.00010248,2]
[348305623,1736439050682,-5488.77,0.00010248,2]
[348305624,1736439050692,-1429.96,0.00010248,2]
[348305625,1736439050701,-1215.89,0.00010248,2]
[348305626,1736439050711,-500.0,0.00010248,2]
[348305627,1736439050722,-500.0,0.00010248,2]
[348305628,1736439050731,-500.0,0.00010248,2]
[348305629,1736439050740,-500.0,0.00010248,2]
[348305630,1736439050750,-500.0,0.00010248,2]
[348305631,1736439050760,-500.0,0.00010248,2]
[348305632,1736439050770,-500.0,0.00010248,2]
[348305633,1736439050780,-786.61,0.00010248,2]
[348305634,1736439050789,-639.48,0.00010248,2]
[348305635,1736439050799,-500.0,0.00010248,2]
[348305636,1736439050809,-500.0,0.00010248,2]
[348305637,1736439050819,-500.0,0.00010248,2]
[348305638,1736439050829,-500.0,0.00010248,2]
[348305639,1736439050839,-500.0,0.00010248,2]
[348305640,1736439050848,-500.0,0.00010248,2]
[348305641,1736439050862,-1385.56,0.00010248,2]
[348305642,1736439050875,-1300.33,0.00010248,2]
[348305643,1736439050885,-500.0,0.00010248,2]
[348305644,1736439050894,-4521.15,0.00010248,2]
[348305645,1736439050903,-1054.99,0.00010248,2]
[348305646,1736439050912,-500.0,0.00010248,2]
[348305647,1736439050922,-500.0,0.00010248,2]
[348305648,1736439050931,-515.68,0.00010248,2]
[348305649,1736439050940,-500.0,0.00010248,2]
[348305650,1736439050950,-500.0,0.00010248,2]
[348305651,1736439050959,-500.0,0.00010248,2]
[348305652,1736439050969,-500.0,0.00010248,2]
[348305653,1736439050978,-500.0,0.00010248,2]
[348305654,1736439050988,-500.0,0.00010248,2]
[348305655,1736439050997,-713.06,0.00010248,2]
[348305656,1736439051007,-500.0,0.00010248,2]
[348305657,1736439051016,-500.0,0.00010248,2]
[348305658,1736439051027,-500.0,0.00010248,2]
[348305659,1736439051036,-500.0,0.00010248,2]
[348305660,1736439051045,-500.0,0.00010248,2]
[348305661,1736439051055,-665.72,0.00010248,2]
[348305662,1736439051065,-500.0,0.00010248,2]
[348305663,1736439051074,-518.31,0.00010248,2]
[348305664,1736439051083,-500.0,0.00010248,2]
[348305665,1736439051092,-500.0,0.00010248,2]
[348305666,1736439051101,-1102.61,0.00010248,2]
[348305667,1736439051114,-509.97,0.00010248,2]
[348305668,1736439051124,-500.0,0.00010248,2]
[348305669,1736439051134,-500.0,0.00010248,2]
[348305670,1736439051144,-676.41,0.00010248,2]
[348305671,1736439051154,-500.0,0.00010248,2]
[348305672,1736439051163,-500.0,0.00010248,2]
[348305673,1736439051172,-500.0,0.00010248,2]
[348305674,1736439051181,-500.0,0.00010248,2]
[348305675,1736439051191,-500.0,0.00010248,2]
[348305676,1736439051200,-500.0,0.00010248,2]
[348305677,1736439051209,-679.98,0.00010248,2]
[348305678,1736439051219,-1487.57,0.00010248,2]
[348305679,1736439051229,-500.0,0.00010248,2]
[348305680,1736439051238,-500.0,0.00010248,2]
[348305681,1736439051247,-500.0,0.00010248,2]
[348305682,1736439051257,-546.36232796,0.00010248,2]
[348305683,1736439051266,-500.0,0.00010248,2]
[348305684,1736439051275,-500.0,0.00010248,2]
[348305685,1736439051285,-1394.43,0.00010248,2]
[348305686,1736439051294,-500.0,0.00010248,2]
[348305687,1736439051303,-500.0,0.00010248,2]
[348305688,1736439051312,-782.46,0.00010248,2]
[348305689,1736439051322,-746.76,0.00010248,2]
[348305690,1736439051331,-1065.62,0.00010248,2]
[348305691,1736439051340,-500.0,0.00010248,2]
[348305692,1736439051349,-500.0,0.00010248,2]
[348305693,1736439051359,-1279.01,0.00010248,2]
[348305694,1736439051372,-500.0,0.00010248,2]
[348305695,1736439051381,-1477.38,0.00010248,2]
[348305696,1736439051391,-500.0,0.00010248,2]
[348305697,1736439051400,-622.24,0.00010248,2]
[348305698,1736439051409,-500.0,0.00010248,2]
[348305699,1736439051419,-500.0,0.00010248,2]
[348305700,1736439051429,-500.0,0.00010248,2]
[348305701,1736439051439,-500.0,0.00010248,2]
[348305702,1736439051448,-500.0,0.00010248,2]
[348305703,1736439051458,-500.0,0.00010248,2]
[348305704,1736439051468,-500.0,0.00010248,2]
[348305705,1736439051477,-500.0,0.00010249,2]
[348305706,1736439051487,-500.0,0.00010249,2]
[348305707,1736439051496,-500.0,0.00010249,2]
[348305708,1736439051506,-500.0,0.00010249,2]
[348305709,1736439051515,-500.0,0.00010249,2]
[348305710,1736439051525,-500.0,0.00010249,2]
[348305711,1736439051535,-500.0,0.00010249,2]
[348305712,1736439051544,-500.0,0.00010249,2]
[348305713,1736439051554,-500.0,0.00010249,2]
[348305714,1736439051564,-500.0,0.00010249,2]
[348305715,1736439051574,-500.0,0.00010249,2]
[348305716,1736439051583,-500.0,0.00010249,2]
[348305717,1736439051594,-500.0,0.00010249,2]
[348305718,1736439051603,-500.0,0.00010249,2]
[348305719,1736439051837,-500.0,0.00010249,2]
[348305720,1736439051848,-500.0,0.00010249,2]
[348305721,1736439051859,-500.0,0.00010249,2]
[348305722,1736439051874,-500.0,0.00010249,2]
[348305723,1736439051884,-500.0,0.00010249,2]
[348305724,1736439051895,-500.0,0.00010249,2]
[348305725,1736439051905,-500.0,0.00010249,2]
[348305726,1736439051915,-500.0,0.00010249,2]
[348305727,1736439051925,-1607.22,0.00010249,2]
[348305728,1736439051934,-934.31,0.00010249,2]
[348305729,1736439051944,-2252.04,0.00010249,2]
[348305730,1736439051954,-2909.97,0.00010249,2]
[348305731,1736439051964,-3054.64,0.00010249,2]
[348305732,1736439051974,-1951.19,0.00010249,2]
[348305733,1736439051984,-2721.21,0.00010249,2]
[348305734,1736439051995,-5541.6,0.00010249,2]
[348305735,1736439052006,-13573.49,0.00010249,2]
[348305736,1736439052016,-3895.28,0.00010249,2]
[348305737,1736439052025,-2256.12,0.00010249,2]
[348305738,1736439052035,-876.12,0.00010249,2]
[348305739,1736439052046,-500.0,0.00010249,2]
[348305740,1736439052056,-1246.08,0.00010249,2]
[348305741,1736439052066,-1515.87,0.0001025,2]
[348305742,1736439052076,-567.36,0.0001025,2]
[348305743,1736439052087,-2160.6,0.0001025,2]
[348305744,1736439052097,-1000.0,0.0001025,2]
[348305745,1736439052107,-1402.84,0.0001025,2]
[348305746,1736439052123,-500.0,0.0001025,2]
[348305747,1736439052133,-3197.74,0.0001025,2]
[348305748,1736439052142,-2454.92,0.0001025,2]
[348305749,1736439052152,-1136.52039046,0.00010252,2]
[348305750,1736439052162,-4243.08622384,0.00010272,4]
[348305751,1736439052171,-150.0,0.00010307,2]
[348305752,1736439052182,-508.09,0.00010345,2]
[348305753,1736439052192,-7877.4,0.00010345,2]
[348305754,1736439052202,-4372.42,0.00010345,2]
[348305755,1736439052213,-1110.03,0.00010345,2]
[348305756,1736439052224,-2899.54,0.00010345,2]
[348305757,1736439052234,-6743.94,0.00010345,2]
[348305758,1736439052244,-616.64,0.00010345,2]
[348305759,1736439052253,-500.0,0.00010345,2]
[348305760,1736439052262,-1400.52,0.00010345,2]
[348305761,1736439052272,-764.58,0.00010345,2]
[348305762,1736439052281,-524.59,0.00010345,2]
[348305763,1736439052290,-1406.64,0.00010345,2]
[348305764,1736439052299,-1645.73,0.00010345,2]
[348305765,1736439052309,-237.55819467,0.00010345,2]
[348305766,1736439052319,-500.0,0.00010345,2]
[348305767,1736439052328,-1728.35,0.00010345,2]
[348305768,1736439052337,-500.0,0.00010346,2]
[348305769,1736439052347,-500.0,0.00010346,2]
[348305770,1736439052356,-500.0,0.00010346,2]
[348305771,1736439052371,-500.0,0.00010346,2]
[348305772,1736439052380,-500.0,0.00010346,2]
[348305773,1736439052389,-500.0,0.00010346,2]
[348305774,1736439052399,-500.0,0.00010346,2]
[348305775,1736439052407,-500.0,0.00010346,2]
[348305776,1736439052417,-500.0,0.00010346,2]
[348305777,1736439052426,-500.0,0.00010346,2]
[348305778,1736439052435,-500.0,0.00010346,2]
[348305779,1736439052444,-500.0,0.00010346,2]
[348305780,1736439052454,-500.0,0.00010346,2]
[348305781,1736439052463,-500.0,0.00010346,2]
[348305782,1736439052472,-500.0,0.00010346,2]
[348305783,1736439052481,-500.0,0.00010346,2]
[348305784,1736439052491,-500.0,0.00010346,2]
[348305785,1736439052500,-500.0,0.00010346,2]
[348305786,1736439052510,-500.0,0.00010346,2]
[348305787,1736439052520,-500.0,0.00010346,2]
[348305788,1736439052529,-536.40920119,0.00010346,2]
[348305789,1736439052539,-500.0,0.00010346,2]
[348305790,1736439052548,-500.0,0.00010346,2]
[348305791,1736439052558,-500.0,0.00010346,2]
[348305792,1736439052567,-500.0,0.00010346,2]
[348305793,1736439052576,-500.0,0.00010346,2]
[348305794,1736439052586,-500.0,0.00010346,2]
[348305795,1736439052595,-500.0,0.00010346,2]
[348305796,1736439052607,-500.0,0.00010346,2]
[348305797,1736439052619,-500.0,0.00010346,2]
[348305798,1736439052629,-500.0,0.00010346,2]
[348305799,1736439052639,-500.0,0.00010346,2]
[348305800,1736439052648,-500.0,0.00010346,2]
[348305801,1736439052658,-500.0,0.00010346,2]
[348305802,1736439052669,-500.0,0.00010346,2]
[348305803,1736439052679,-500.0,0.00010346,2]
[348305804,1736439052689,-500.0,0.00010346,2]
[348305805,1736439052698,-500.0,0.00010346,2]
[348305806,1736439052708,-500.0,0.00010346,2]
[348305807,1736439052722,-500.0,0.00010346,2]
[348305808,1736439052732,-500.0,0.00010346,2]
[348305809,1736439052742,-470.27486098,0.00010346,2]
[348305810,1736439052752,-500.0,0.00010346,2]
[348305811,1736439052762,-500.0,0.00010346,2]
[348305812,1736439052772,-500.0,0.00010346,2]
[348305813,1736439052782,-500.0,0.00010346,2]
[348305814,1736439052791,-500.0,0.00010346,2]
[348305815,1736439052801,-500.0,0.00010346,2]
[348305816,1736439052811,-500.0,0.00010346,2]
[348305817,1736439052821,-500.0,0.00010346,2]
[348305818,1736439052830,-500.0,0.00010346,2]
[348305819,1736439052840,-500.0,0.00010346,2]
[348305820,1736439052851,-500.0,0.00010346,2]
[348305821,1736439052861,-500.0,0.00010346,2]
[348305822,1736439052875,-165.04413965,0.00010346,2]
[348305823,1736439052885,-500.0,0.00010346,2]
[348305824,1736439052895,-500.0,0.00010346,2]
[348305825,1736439052905,-500.0,0.00010346,2]
[348305826,1736439052915,-500.0,0.00010346,2]
[348305827,1736439052925,-1362.15,0.00010346,2]
[348305828,1736439052934,-813.72,0.00010346,2]
[348305829,1736439052944,-500.0,0.00010346,2]
[348305830,1736439052954,-636.0,0.00010346,2]
[348305831,1736439052964,-500.0,0.00010346,2]
[348305832,1736439052973,-1459.79,0.00010346,2]
[348305833,1736439052983,-500.0,0.00010346,2]
[348305834,1736439052993,-984.2,0.00010346,2]
[348305835,1736439053002,-500.0,0.00010346,2]
[348305836,1736439053013,-500.0,0.00010346,2]
[348305837,1736439053022,-500.0,0.00010346,2]
[348305838,1736439053032,-682.39,0.00010346,2]
[348305839,1736439053041,-500.0,0.00010346,2]
[348305840,1736439053051,-500.0,0.00010346,2]
[348305841,1736439053060,-500.0,0.00010346,2]
[348305842,1736439053070,-500.0,0.00010346,2]
[348305843,1736439053080,-500.0,0.00010346,2]
[348305844,1736439053090,-500.0,0.00010346,2]
[348305845,1736439053099,-500.0,0.00010346,2]
[348305846,1736439053109,-652.59,0.00010346,2]
[348305847,1736439053126,-384.10252869,0.00010346,2]
[348305848,1736439053147,-115.89747131,0.00010346,2]
[348305849,1736439053157,-500.0,0.00010346,2]
[348305850,1736439053167,-500.0,0.00010346,2]
[348305851,1736439053177,-500.0,0.00010346,2]
[348305852,1736439053187,-500.0,0.00010346,2]
[348305853,1736439053197,-500.0,0.00010346,2]
[348305854,1736439053207,-500.0,0.00010346,2]
[348305855,1736439053218,-582.65,0.00010346,2]
[348305856,1736439053228,-500.0,0.00010346,2]
[348305857,1736439053237,-500.0,0.00010346,2]
[348305858,1736439053247,-500.0,0.00010346,2]
[348305859,1736439053257,-500.0,0.00010346,2]
[348305860,1736439053267,-500.0,0.00010346,2]
[348305861,1736439053276,-500.0,0.00010346,2]
[348305862,1736439053286,-540.37,0.00010346,2]
[348305863,1736439053295,-500.0,0.00010346,2]
[348305864,1736439053305,-500.0,0.00010346,2]
[348305865,1736439053314,-500.0,0.00010346,2]
[348305866,1736439053324,-534.26,0.00010346,2]
[348305867,1736439053334,-495.4,0.00010346,2]
[348305868,1736439053344,-500.0,0.00010346,2]
[348305869,1736439053353,-569.97,0.00010346,2]
[348305870,1736439053366,-500.0,0.00010346,2]
[348305871,1736439053379,-628.57,0.00010346,2]
[348305872,1736439053389,-500.0,0.00010346,2]
[348305873,1736439053399,-500.0,0.00010346,2]
[348305874,1736439053408,-681.21,0.00010346,2]
[348305875,1736439053419,-500.0,0.00010346,2]
[348305876,1736439053429,-657.74,0.00010346,2]
[348305877,1736439053439,-500.0,0.00010346,2]
[348305878,1736439053448,-500.0,0.00010346,2]
[348305879,1736439053457,-1169.44,0.00010346,2]
[348305880,1736439053467,-2249.46,0.00010346,2]
[348305881,1736439053476,-500.0,0.00010346,2]
[348305882,1736439053486,-777.4,0.00010346,2]
[348305883,1736439053496,-597.15,0.00010346,2]
[348305884,1736439053505,-500.0,0.00010346,2]
[348305885,1736439053515,-501.94,0.00010346,2]
[348305886,1736439053525,-500.0,0.00010346,2]
[348305887,1736439053534,-1347.15,0.00010346,2]
[348305888,1736439053544,-500.0,0.00010346,2]
[348305889,1736439053553,-523.94,0.00010346,2]
[348305890,1736439053564,-1612.65,0.00010346,2]
[348305891,1736439053574,-675.02,0.00010346,2]
[348305892,1736439053584,-500.0,0.00010346,2]
[348305893,1736439053593,-500.0,0.00010346,2]
[348305894,1736439053603,-1205.88,0.00010346,2]
[348305895,1736439053614,-500.0,0.00010346,2]
[348305896,1736439053624,-866.82,0.00010346,2]
[348305897,1736439053634,-500.0,0.00010346,2]
[348305898,1736439053644,-925.46,0.00010346,2]
[348305899,1736439053653,-500.0,0.00010346,2]
[348305900,1736439053663,-681.99,0.00010346,2]
[348305901,1736439053673,-573.6265733,0.00010346,2]
[348305902,1736439053683,-607.45,0.00010346,2]
[348305903,1736439053693,-500.0,0.00010346,2]
[348305904,1736439053702,-500.0,0.00010346,2]
[348305905,1736439053712,-500.0,0.00010346,2]
[348305906,1736439053722,-500.0,0.00010346,2]
[348305907,1736439053735,-500.0,0.00010346,2]
[348305908,1736439053745,-857.42,0.00010346,2]
[348305909,1736439053755,-564.85,0.00010346,2]
[348305910,1736439053764,-500.0,0.00010346,2]
[348305911,1736439053774,-500.0,0.00010346,2]